bitfinex/quotes_ETHUSD_20240730
["timestamp","ask_amount","ask_price","bid_price","bid_amount"]
[1722371122465,0.58760701,3269.7,3268.7,1.414339]
[1722371122466,0.03760701,3269.7,3268.7,1.414339]
[1722371123763,0.58760701,3269.7,3268.7,1.414339]
[1722371123966,0.03760701,3269.7,3268.7,1.414339]
[1722371124893,0.03760701,3269.7,3268.8,2.65418138]
[1722371125067,0.03760701,3269.7,3268.9,0.40685204]
[1722371125246,0.55,3269.9,3268.9,0.40685204]
[1722371125449,0.03729323,3269.8,3268.9,0.40685204]
[1722371125893,0.03729323,3269.8,3269.0,0.06117592]
[1722371126099,0.03729323,3269.8,3269.2,2.593]
[1722371126302,7.39,3270.0,3269.3,0.56140939]
[1722371126501,0.03703631,3269.7,3269.3,0.56140939]
[1722371126670,7.39,3270.0,3269.3,0.56140939]
[1722371126853,0.03714054,3269.9,3269.3,0.50024]
[1722371127264,0.03714054,3269.9,3269.2,2.593]
[1722371127800,0.03714054,3269.9,3269.2,2.65417021]
[1722371128309,7.39,3270.6,3269.4,2.4708]
[1722371128614,0.03743926,3269.8,3269.4,2.4708]
[1722371128864,7.39,3270.6,3269.5,0.24708]
[1722371129020,0.03780587,3270.5,3269.5,0.24708]
[1722371130453,0.03780587,3270.5,3269.6,0.06116123]
[1722371130613,0.13299328,3270.4,3269.5,0.24708]
[1722371130804,0.17083457,3270.3,3269.4,2.4708]
[1722371131042,0.13299611,3270.2,3269.4,2.4708]
[1722371131222,0.03778511,3270.1,3269.4,2.4708]
[1722371131437,7.39,3270.6,3269.5,0.06116771]
[1722371131758,0.17098384,3270.5,3269.5,0.31436448]
[1722371131909,0.13297798,3270.4,3269.5,0.31436448]
[1722371132112,0.13296241,3270.3,3269.5,0.31436448]
[1722371132354,0.0378635,3270.3,3269.5,0.31436448]
[1722371132582,0.13296847,3270.2,3269.6,0.27851645]
[1722371132792,10.02511221,3270.6,3269.7,0.06116107]
[1722371133080,0.13296314,3270.5,3269.7,0.06116107]
[1722371133235,0.03789799,3270.4,3269.5,0.06116108]
[1722371133439,10.02747549,3270.6,3269.5,0.06116108]
[1722371133637,2.80935741,3270.5,3269.5,0.31435719]
[1722371134088,2.94232434,3270.5,3269.5,0.31435719]
[1722371134388,0.13296693,3270.4,3269.5,0.31435719]
[1722371134597,0.13296693,3270.3,3269.5,0.31435719]
[1722371134776,0.13296693,3270.2,3269.6,0.27851572]
[1722371134941,0.03784591,3270.3,3269.7,0.06116108]
[1722371135140,0.13295978,3270.5,3269.7,0.06116108]
[1722371135141,0.03774173,3270.1,3269.7,0.06116108]
[1722371135477,0.03756069,3270.0,3269.7,0.06116108]
[1722371135687,2.77223826,3270.5,3269.7,0.06116108]
[1722371135988,0.03771752,3270.4,3270.0,2.593]
[1722371136189,0.03771752,3270.4,3270.0,2.65415359]
[1722371136703,0.03771752,3270.4,3270.1,2.3525]
[1722371136975,0.03771752,3270.4,3270.2,0.06114837]
[1722371137282,0.13295978,3270.5,3270.3,0.24136484]
[1722371137464,0.13295978,3270.5,3270.4,0.06114827]
[1722371137983,0.13295978,3270.5,3270.4,2.51514827]
[1722371138192,0.13295978,3270.5,3270.4,5.10814827]
[1722371138335,0.13295978,3270.5,3270.4,5.64309958]
[1722371138541,0.13295978,3270.5,3270.4,5.64309629]
[1722371138798,2.63966866,3271.9,3270.5,2.3441]
[1722371138983,2.63966866,3272.1,3271.1,2.593]
[1722371139293,2.63966866,3272.0,3271.2,2.3441]
[1722371139440,2.63966866,3272.3,3271.2,2.40523355]
[1722371139637,2.63878248,3272.3,3271.2,2.90505691]
[1722371140200,2.63878248,3272.1,3271.2,2.84392336]
[1722371140353,3.05577,3272.5,3271.2,2.84392336]
[1722371140354,2.63878248,3272.2,3271.2,2.84392336]
[1722371140555,2.63878248,3272.1,3271.3,0.06112988]
[1722371140735,2.63878248,3272.4,3271.4,0.29050532]
[1722371140935,2.63878248,3272.3,3271.2,2.84392336]
[1722371141177,2.63878248,3272.2,3271.2,2.84392336]
[1722371141384,2.63878248,3272.1,3271.2,2.84392336]
[1722371141543,3.05586,3272.4,3271.2,2.84392336]
[1722371141544,2.63878248,3272.2,3271.2,2.84392336]
[1722371142883,2.63677993,3272.2,3271.2,2.84392336]
[1722371143590,5.69280993,3272.3,3271.2,2.3441]
[1722371143738,2.63677993,3272.1,3271.2,2.3441]
[1722371143948,5.69283993,3272.2,3271.2,2.3441]
[1722371144262,5.69307993,3272.0,3270.9,3.0]
[1722371144466,5.69307993,3272.0,3270.8,9.6574]
[1722371144467,3.05652,3271.7,3270.8,9.6574]
[1722371144767,2.63677993,3271.8,3270.8,9.6574]
[1722371144947,2.63677993,3271.9,3270.8,9.6574]
[1722371145152,0.55,3271.8,3270.8,9.6574]
[1722371146343,2.63509126,3271.9,3270.8,9.6574]
[1722371146548,2.63509126,3272.0,3270.8,9.6574]
[1722371146762,3.0,3271.9,3270.9,0.06113979]
[1722371146959,3.0,3272.0,3270.8,10.88244]
[1722371147262,2.63509126,3272.4,3271.2,2.2586]
[1722371147638,10.39,3272.6,3271.2,2.2586]
[1722371147639,3.0,3272.5,3271.2,2.2586]
[1722371147768,2.63509126,3272.3,3271.2,2.2586]
[1722371148095,2.63509126,3272.4,3271.2,2.2586]
[1722371148304,3.0,3272.3,3271.2,2.73988749]
[1722371148912,3.0,3272.4,3271.2,2.73988749]
[1722371149095,3.0,3272.4,3271.2,2.2586]
[1722371149904,3.0,3272.5,3271.2,2.2586]
[1722371150213,0.55,3272.4,3271.2,2.2586]
[1722371150849,0.55,3272.4,3271.3,0.0611301]
[1722371151046,0.55,3272.4,3271.4,2.4602]
[1722371152367,0.03578348,3272.3,3271.4,2.4602]
[1722371153750,0.03578348,3272.3,3271.0,2.3688]
[1722371153985,3.05639,3271.9,3271.0,2.3688]
[1722371154191,2.6305289,3272.2,3271.0,2.3688]
[1722371154361,0.03560404,3271.8,3271.0,2.3688]
[1722371154562,0.86955435,3272.4,3271.2,2.593]
[1722371154757,0.03529427,3271.7,3271.2,2.593]
[1722371155064,0.86955435,3272.4,3271.2,2.593]
[1722371155317,0.03580294,3272.3,3271.2,3.08918]
[1722371155638,0.03580294,3272.3,3271.2,2.593]
[1722371155856,0.03580294,3272.3,3271.0,2.3688]
[1722371156189,3.03580294,3272.3,3271.1,0.06113326]
[1722371157835,3.03580294,3272.3,3271.0,2.3688]
[1722371157988,0.03580294,3272.3,3271.2,2.4639]
[1722371158196,0.03580294,3272.3,3271.3,0.31363299]
[1722371158390,0.03580294,3272.3,3271.3,0.25250333]
[1722371159115,0.03580294,3272.3,3271.2,5.0569]
[1722371159319,3.03580294,3272.3,3271.2,5.0569]
[1722371159670,3.03580294,3272.3,3271.2,2.4639]
[1722371160363,0.03580294,3272.3,3271.2,2.4639]
[1722371162231,3.03580294,3272.3,3271.2,2.4639]
[1722371162643,0.03580294,3272.3,3271.2,2.4639]
[1722371162878,0.03580294,3272.3,3271.3,0.24639]
[1722371163017,0.03580294,3272.3,3271.2,2.4639]
[1722371163414,3.03580294,3272.3,3271.2,2.4639]
[1722371163718,6.09175294,3272.3,3271.2,2.4639]
[1722371163919,3.03580294,3272.3,3271.2,2.4639]
[1722371164145,0.03580294,3272.3,3271.2,2.4639]
[1722371164334,0.03580294,3272.3,3271.2,2.71029]
[1722371165616,0.03580294,3272.3,3271.2,5.30329]
[1722371165821,0.03580294,3272.3,3271.3,0.06112971]
[1722371166041,0.03580294,3272.3,3271.4,2.4417]
[1722371166254,0.03558382,3272.2,3271.5,0.06112616]
[1722371166522,0.4521957,3272.7,3271.5,0.31140878]
[1722371166722,0.03553179,3272.1,3271.5,0.31140878]
[1722371166966,3.4521957,3272.7,3271.5,0.31140878]
[1722371167264,3.4521957,3272.7,3271.5,0.06112616]
[1722371167667,0.03579191,3272.6,3271.5,0.06112616]
[1722371169087,0.03579191,3272.6,3271.6,5.0347]
[1722371169233,0.03579191,3272.6,3271.7,0.06111794]
[1722371169434,0.03579191,3272.6,3271.6,5.0347]
[1722371170273,0.03579191,3272.6,3271.6,2.4417]
[1722371171324,0.03579191,3272.6,3271.6,2.68587]
[1722371173166,0.03579191,3272.6,3271.7,0.06112511]
[1722371173545,0.03579191,3272.6,3271.6,2.68587]
[1722371173902,0.03579191,3272.6,3270.5,3.05763]
[1722371173903,2.3872,3271.6,3268.8,2.593]
[1722371174175,8.28718362,3270.6,3268.3,2.593]
[1722371174371,2.3872,3270.7,3268.7,2.593]
[1722371174585,0.03463889,3270.5,3269.1,2.593]
[1722371174728,2.63706049,3270.8,3269.1,2.593]
[1722371174729,1.91305106,3270.1,3269.1,2.593]
[1722371175128,0.03439151,3270.0,3268.8,0.66971317]
[1722371175353,0.03439151,3270.0,3268.9,0.06116966]
[1722371175600,0.03439151,3270.0,3268.9,0.73088283]
[1722371175728,0.03439151,3270.0,3268.4,0.2593]
[1722371175729,0.03439151,3270.0,3269.1,2.593]
[1722371176093,0.03409068,3269.9,3269.2,3.3935489]
[1722371176376,1.91304808,3270.4,3269.5,2.593]
[1722371176575,0.03403857,3269.8,3269.6,3.061157]
[1722371176757,1.91304808,3270.5,3269.7,2.394]
[1722371176935,0.63930212,3270.4,3269.8,0.06115744]
[1722371177135,1.91304808,3270.5,3269.8,0.06115744]
[1722371177336,0.03429909,3270.3,3269.9,0.24551574]
[1722371177547,0.03435118,3270.4,3270.0,0.06115568]
[1722371177746,0.03424699,3270.2,3270.0,0.06115568]
[1722371177951,1.91380872,3270.5,3270.0,0.06115568]
[1722371178162,0.03419489,3270.1,3270.0,0.06115568]
[1722371178747,0.03419489,3270.1,3269.7,2.394]
[1722371178947,1.91380872,3270.3,3269.8,0.59594157]
[1722371179177,0.63944074,3270.2,3269.7,2.394]
[1722371179500,1.91380872,3269.8,3269.7,2.394]
[1722371179795,0.63930741,3269.8,3269.7,2.394]
[1722371180090,0.03405397,3269.8,3269.7,2.394]
[1722371180587,5.69502765,3270.6,3269.7,2.394]
[1722371180588,1.91380872,3270.0,3269.7,2.394]
[1722371180888,2.58746741,3269.9,3269.7,2.394]
[1722371181045,1.94803484,3269.9,3269.7,2.394]
[1722371181246,0.63925503,3269.8,3269.7,2.394]
[1722371181443,2.553264,3269.8,3269.7,2.394]
[1722371181697,1.94803484,3269.9,3269.7,2.394]
[1722371181862,0.03393796,3269.8,3269.7,2.394]
[1722371182204,2.5532855,3269.8,3269.7,2.394]
[1722371182342,2.5532855,3269.8,3269.1,9.7211]
[1722371182343,0.63924068,3269.8,3269.1,9.7211]
[1722371182546,0.63924068,3269.8,3269.1,2.4211]
[1722371182547,1.9137576,3269.6,3269.1,2.4211]
[1722371182783,1.94769495,3269.7,3269.1,2.4211]
[1722371182994,1.9137576,3269.5,3269.1,2.4211]
[1722371183156,2.55284672,3269.4,3269.1,2.4211]
[1722371183364,2.55280927,3269.3,3268.6,9.7211]
[1722371183570,1.94761598,3269.4,3268.7,0.97211]
[1722371183888,0.03334502,3269.3,3268.7,0.97211]
[1722371184050,2.23305229,3269.8,3268.7,0.97211]
[1722371184051,1.91131621,3269.4,3268.7,0.97211]
[1722371184251,1.91131621,3269.5,3268.7,0.97211]
[1722371184504,1.91131621,3269.5,3268.8,1.069321]
[1722371184707,0.03326815,3269.4,3268.8,1.069321]
[1722371184991,1.91131621,3269.7,3268.8,1.069321]
[1722371185192,1.91131621,3269.7,3268.9,0.06117358]
[1722371185193,0.0332544,3269.3,3268.9,0.06117358]
[1722371185463,1.91131621,3269.8,3269.0,2.4156]
[1722371185616,3.1188294,3270.8,3269.1,5.25627736]
[1722371185617,1.91131621,3270.2,3269.1,5.25627736]
[1722371185829,0.03168241,3269.2,3269.1,5.25627736]
[1722371186121,1.91131621,3270.1,3269.1,8.25627736]
[1722371186267,1.91131621,3270.1,3269.2,38.0]
[1722371186470,1.91131621,3270.2,3269.3,3.04901288]
[1722371186774,2.55002708,3270.1,3269.4,3.0]
[1722371186977,1.91131621,3270.1,3269.2,3.0]
[1722371187279,1.90933096,3270.1,3269.2,38.0]
[1722371187499,1.90933096,3270.1,3269.3,3.04901288]
[1722371187702,1.90933096,3270.2,3269.4,3.0]
[1722371187905,1.90933096,3270.1,3269.4,3.0]
[1722371188088,1.90933096,3270.0,3269.3,3.0]
[1722371188304,1.90933096,3270.0,3269.3,3.70018443]
[1722371188477,1.90933096,3270.1,3269.3,3.70018443]
[1722371189009,1.90933096,3270.2,3269.3,3.70018443]
[1722371189236,1.90933096,3270.4,3269.4,3.04901288]
[1722371190463,7.8421957,3271.1,3269.4,3.04901288]
[1722371190600,1.9084278,3270.5,3269.4,3.04901288]
[1722371190799,1.9084278,3270.4,3269.4,3.04901288]
[1722371191040,3.05728,3270.9,3269.5,0.67491973]
[1722371191248,1.90826704,3270.3,3269.5,0.67491973]
[1722371191460,1.90826704,3270.4,3269.5,0.67491973]
[1722371191665,1.90826704,3270.5,3269.4,35.0]
[1722371192316,1.90826704,3270.5,3269.5,2.3151]
[1722371192644,3.60722,3271.0,3269.6,3.04901288]
[1722371192846,1.90733844,3270.5,3269.7,0.06116096]
[1722371193050,1.90733844,3270.8,3269.7,0.06116096]
[1722371193216,3.0567,3271.5,3269.7,0.06116096]
[1722371193217,0.03135941,3270.4,3269.8,2.59811738]
[1722371193417,1.90733844,3271.1,3269.9,3.0]
[1722371193642,1.90733844,3271.1,3270.0,0.06114669]
[1722371193852,1.90789177,3271.4,3270.3,2.593]
[1722371194009,1.90789177,3271.6,3270.5,2.2871]
[1722371194210,0.03094306,3271.3,3270.6,0.06114221]
[1722371194410,1.90789177,3271.6,3270.6,0.06114221]
[1722371194411,0.0311632,3271.5,3270.6,0.06114221]
[1722371194610,0.03100704,3271.2,3270.6,0.06114221]
[1722371194925,0.03085558,3271.1,3270.6,0.06114221]
[1722371195139,0.03085558,3271.1,3270.5,2.2871]
[1722371195140,1.90789177,3271.3,3270.5,2.2871]
[1722371195318,0.03095921,3271.2,3270.6,0.06114]
[1722371196766,1.90789177,3271.3,3270.6,0.06114]
[1722371196951,0.03097211,3271.2,3270.6,0.06114]
[1722371197108,1.90953188,3271.3,3270.6,0.06114]
[1722371197309,0.67026483,3271.2,3270.5,2.2871]
[1722371197551,2.5488246,3271.1,3270.5,2.2871]
[1722371197731,0.03095817,3271.0,3270.5,2.2871]
[1722371198331,1.90953188,3271.2,3270.5,3.60695651]
[1722371198661,0.03095498,3271.1,3270.5,3.60695651]
[1722371199036,1.90953188,3271.4,3270.5,3.60695651]
[1722371199229,0.03106902,3271.0,3270.5,3.60695651]
[1722371199577,0.03101695,3270.9,3270.8,2.2726]
[1722371199879,1.90953188,3271.9,3270.8,5.33373282]
[1722371200238,0.03022933,3271.8,3270.8,5.33373282]
[1722371200838,1.94063767,3271.8,3270.8,5.33373282]
[1722371201456,0.03022933,3271.8,3270.8,5.33373282]
[1722371201649,1.94063767,3271.8,3270.9,0.79267328]
[1722371201885,1.94063767,3271.8,3271.0,0.06112937]
[1722371201886,0.03022933,3271.8,3271.0,0.06112937]
[1722371202977,0.03022933,3271.8,3271.5,2.593]
[1722371203191,1.91040834,3272.4,3271.6,5.2785]
[1722371203405,10.44527,3273.1,3271.6,5.2785]
[1722371203406,0.03048915,3271.7,3271.6,5.2785]
[1722371203694,13.50055,3273.1,3271.6,5.33962178]
[1722371203695,1.91059424,3272.5,3271.6,5.33962178]
[1722371204042,1.91059424,3272.3,3271.6,2.2785]
[1722371204244,1.91059424,3272.2,3271.6,2.2785]
[1722371204440,1.94170319,3272.2,3271.6,2.2785]
[1722371204750,0.03110895,3272.2,3271.6,2.2785]
[1722371205056,1.91059424,3272.3,3271.6,2.2785]
[1722371205490,0.03099112,3272.2,3271.6,2.2785]
[1722371205639,0.03099112,3272.2,3271.6,3.53635]
[1722371205845,1.91059424,3272.5,3271.7,3.0]
[1722371206044,1.91059424,3272.5,3271.7,3.06112299]
[1722371206290,0.03108346,3272.4,3271.7,3.06112299]
[1722371206456,0.03108346,3272.4,3271.7,3.0]
[1722371206859,1.9414451,3272.4,3271.6,2.2785]
[1722371207100,1.91036164,3272.5,3271.6,2.2785]
[1722371207388,0.03108346,3272.4,3271.7,0.06112294]
[1722371207682,0.03108346,3272.4,3271.7,3.06112294]
[1722371207898,0.03108346,3272.4,3271.7,3.0]
[1722371207899,1.9414451,3272.4,3271.7,3.0]
[1722371208109,1.9414451,3272.4,3271.6,2.2785]
[1722371208274,1.91036164,3272.3,3271.6,2.2785]
[1722371208606,0.03108346,3272.4,3271.6,2.2785]
[1722371208607,0.03112968,3272.2,3271.6,2.2785]
[1722371208898,1.94149132,3272.2,3271.6,2.2785]
[1722371209058,1.91036164,3272.0,3271.4,7.3]
[1722371209258,1.91036164,3272.1,3271.4,7.3]
[1722371209500,0.03125435,3271.9,3271.4,7.3]
[1722371209803,0.03117498,3271.8,3271.4,7.3]
[1722371210021,0.03117498,3271.8,3271.1,2.4004]
[1722371210161,1.90889019,3271.9,3271.1,2.4004]
[1722371210361,0.03095236,3271.8,3271.1,2.4004]
[1722371210988,1.93984255,3271.8,3271.1,2.4004]
[1722371212501,1.90889019,3271.7,3271.1,2.4004]
[1722371212997,0.03097711,3271.6,3271.1,2.4004]
[1722371213608,1.9093872,3271.8,3271.1,2.4004]
[1722371213905,0.03092507,3271.5,3271.1,2.4004]
[1722371214104,1.90922316,3271.7,3271.1,2.4004]
[1722371214264,0.03087302,3271.4,3271.1,2.4004]
[1722371214466,1.90922316,3271.7,3271.1,2.4004]
[1722371214781,0.03082097,3271.3,3271.1,2.4004]
[1722371214975,1.90922316,3271.7,3271.1,2.4004]
[1722371215175,1.9399682,3271.6,3271.1,2.4004]
[1722371215382,0.03074504,3271.6,3271.1,2.4004]
[1722371215910,1.90922316,3271.7,3271.1,2.4004]
[1722371216217,0.03063049,3271.5,3271.1,2.4004]
[1722371216382,0.03068254,3271.6,3271.1,2.4004]
[1722371216712,1.94104591,3271.6,3271.1,2.4004]
[1722371218383,1.94104591,3271.6,3270.7,2.2907]
[1722371219005,1.91036337,3271.5,3270.7,2.2907]
[1722371219220,0.03051985,3271.4,3270.7,2.2907]
[1722371219370,1.94088322,3271.4,3270.7,2.2907]
[1722371219569,1.91036337,3271.3,3270.7,2.2907]
[1722371219787,1.94076153,3271.2,3270.7,2.2907]
[1722371219966,1.94226637,3271.2,3270.7,2.2907]
[1722371220295,0.03039816,3271.2,3270.7,2.2907]
[1722371220614,1.91186821,3271.4,3270.7,2.2907]
[1722371220913,0.03032463,3271.1,3270.7,2.2907]
[1722371221116,1.91186821,3271.4,3270.7,2.2907]
[1722371221327,0.03027257,3271.0,3270.8,0.06114431]
[1722371221483,1.91186821,3271.5,3270.8,0.06114431]
[1722371221993,0.03036794,3271.4,3270.7,2.2907]
[1722371222169,1.91186821,3271.4,3270.7,2.2907]
[1722371222370,1.94235474,3271.3,3270.7,2.2907]
[1722371222598,0.03048653,3271.3,3270.7,2.2907]
[1722371222820,1.91186821,3271.2,3270.7,2.2907]
[1722371223125,1.91186821,3271.1,3270.7,2.2907]
[1722371223330,1.94226735,3271.1,3270.7,2.2907]
[1722371223622,1.91186821,3270.8,3269.9,2.4843]
[1722371223779,1.91176127,3270.6,3269.9,2.4843]
[1722371223977,1.94174785,3270.5,3269.9,2.4843]
[1722371225189,0.63981891,3270.4,3269.5,2.4784]
[1722371225388,1.9110345,3270.2,3269.5,2.4784]
[1722371225717,0.02978801,3270.1,3269.5,2.4784]
[1722371226482,1.9110345,3270.2,3269.5,2.4784]
[1722371226959,2.4248,3270.7,3269.3,7.3]
[1722371226960,2.58058838,3270.1,3269.3,7.3]
[1722371227251,1.9110345,3269.8,3269.1,2.4784]
[1722371227609,0.03170616,3269.7,3269.1,2.4784]
[1722371227836,1.9110345,3269.8,3269.1,2.4784]
[1722371228260,0.03136112,3269.7,3269.1,2.4784]
[1722371228948,1.91076456,3269.8,3269.1,2.4784]
[1722371229106,0.03079734,3269.6,3269.1,2.4784]
[1722371229339,0.03084285,3269.5,3269.1,2.4784]
[1722371229675,1.91076456,3269.8,3269.1,2.4784]
[1722371229858,0.03129204,3269.4,3269.1,2.72624]
[1722371230066,1.91076456,3269.9,3269.1,2.4784]
[1722371230597,0.03147138,3269.8,3269.3,2.3231]
[1722371230770,1.91076456,3270.5,3269.4,0.55888578]
[1722371230938,0.03117342,3270.4,3269.4,3.55888578]
[1722371231289,1.91076456,3270.5,3269.4,3.55888578]
[1722371231438,1.91076456,3270.5,3269.4,38.55888578]
[1722371231638,7.70916065,3271.1,3269.5,2.3231]
[1722371231861,0.03117342,3270.4,3269.6,3.11016934]
[1722371232188,1.91148881,3270.4,3269.6,3.11016934]
[1722371232332,0.03117289,3270.3,3269.6,3.11016934]
[1722371232534,1.91148881,3270.4,3269.6,3.11016934]
[1722371232749,0.03117289,3270.3,3269.6,3.11016934]
[1722371233053,1.91148881,3270.5,3269.7,0.84332693]
[1722371233256,1.91148881,3270.5,3269.8,0.06115708]
[1722371233448,0.03120106,3270.4,3269.8,0.06115708]
[1722371233978,0.03127718,3270.3,3269.8,0.06115708]
[1722371234276,1.91164701,3270.6,3269.8,0.06115708]
[1722371234783,7.39,3271.1,3269.8,0.06115708]
[1722371234784,1.94300817,3270.5,3269.8,0.06115708]
[1722371235087,1.94417523,3270.5,3269.9,0.3904484]
[1722371235449,1.94417523,3270.5,3270.0,0.0611556]
[1722371236183,0.03136116,3270.5,3270.0,0.0611556]
[1722371236594,1.94417523,3270.5,3270.0,0.0611556]
[1722371236761,1.91281407,3270.4,3270.0,0.0611556]
[1722371236970,0.03136116,3270.5,3270.0,0.0611556]
[1722371236971,0.03134639,3270.3,3270.0,0.0611556]
[1722371237197,1.91281407,3270.8,3270.1,2.4729]
[1722371237408,18.0873294,3271.6,3270.1,2.4729]
[1722371237409,1.94424551,3270.7,3270.2,0.25340556]
[1722371237710,1.94424551,3270.7,3270.1,2.4729]
[1722371237902,1.91281407,3270.6,3270.1,2.4729]
[1722371238203,1.91281407,3270.5,3270.1,2.4729]
[1722371238349,1.91348389,3270.6,3270.1,2.4729]
[1722371239200,2.593,3271.7,3270.1,2.4729]
[1722371239201,1.91348389,3270.7,3270.2,0.06115322]
[1722371239346,12.9973294,3271.6,3270.4,2.2984]
[1722371239347,0.03130885,3270.6,3270.4,2.2984]
[1722371239696,1.9137698,3271.2,3270.5,0.06114501]
[1722371239909,1.9137698,3271.3,3270.5,0.06114501]
[1722371240389,7.39,3271.6,3270.5,0.06114501]
[1722371240390,1.9137698,3271.1,3270.5,0.06114501]
[1722371241396,1.9137698,3271.0,3270.5,0.06114501]
[1722371241597,1.91362859,3271.2,3270.6,0.2359545]
[1722371241916,1.91362859,3271.5,3270.7,2.43213572]
[1722371242122,1.91362859,3271.6,3270.7,2.43213572]
[1722371242270,0.03203498,3271.4,3270.8,0.26680902]
[1722371242471,1.91362859,3271.3,3270.8,3.26680902]
[1722371242718,6.1749394,3272.2,3270.8,3.26680902]
[1722371242719,1.91362859,3271.4,3270.8,3.26680902]
[1722371242918,2.6372194,3272.0,3270.8,3.26680902]
[1722371242919,0.03072937,3271.2,3270.8,3.26680902]
[1722371243134,1.94439992,3271.3,3270.9,0.5637809]
[1722371243413,0.03070174,3271.2,3270.9,0.5637809]
[1722371243615,1.91362859,3271.3,3270.9,0.5637809]
[1722371243823,0.03070174,3271.2,3270.9,0.5637809]
[1722371243971,1.91362859,3271.3,3270.9,0.5637809]
[1722371244171,0.03070174,3271.2,3270.9,0.5637809]
[1722371244600,1.91362859,3271.3,3270.9,0.5637809]
[1722371244799,1.91262646,3271.3,3271.0,0.38305899]
[1722371245080,1.91262646,3271.5,3271.0,0.44419841]
[1722371245405,1.91262646,3271.7,3271.1,2.4613]
[1722371245604,1.91262646,3271.8,3271.2,0.29054984]
[1722371246008,1.91262646,3271.7,3271.2,0.29054984]
[1722371246324,1.91262646,3271.8,3271.2,0.29054984]
[1722371246527,1.91262646,3271.8,3271.3,0.33631493]
[1722371246729,1.91262646,3271.9,3271.3,0.33631493]
[1722371247323,1.91262646,3271.8,3271.3,0.33631493]
[1722371247879,1.9128241,3271.8,3271.3,0.33631493]
[1722371248925,7.39,3272.4,3271.3,0.33631493]
[1722371248926,1.9128241,3272.0,3271.3,0.33631493]
[1722371249228,1.9128241,3272.0,3271.4,0.33363149]
[1722371249528,1.9128241,3272.0,3271.5,0.06112599]
[1722371249695,2.63611071,3272.7,3271.4,0.33363149]
[1722371249696,1.9128241,3271.9,3271.4,0.33363149]
[1722371249878,1.9128241,3271.9,3271.3,0.27518498]
[1722371249879,1.9128241,3271.8,3271.2,3.0]
[1722371250085,1.9128241,3271.7,3271.2,3.0]
[1722371250311,1.9128241,3272.0,3271.3,0.06112999]
[1722371250822,2.23162811,3272.3,3271.3,0.06112999]
[1722371250823,1.9128241,3272.1,3271.3,0.06112999]
[1722371250987,1.9128241,3272.1,3271.2,3.0]
[1722371251188,1.91198379,3272.0,3271.3,1.27613]
[1722371251500,1.91198379,3272.1,3271.3,1.27613]
[1722371251716,1.91198379,3272.0,3271.4,0.427613]
[1722371251913,1.91198379,3271.9,3271.2,3.0]
[1722371252734,1.91198379,3271.8,3271.2,3.0]
[1722371254450,1.91235305,3271.8,3271.2,3.0]
[1722371254657,1.91235305,3271.8,3271.2,4.3144359]
[1722371254879,1.91225021,3271.9,3271.3,2.40372705]
[1722371255038,1.91225021,3272.3,3271.4,2.3426]
[1722371255384,1.91225021,3272.4,3271.5,0.60149193]
[1722371255531,1.91225021,3272.3,3271.5,0.60149193]
[1722371255736,1.91225021,3272.3,3271.5,3.60149193]
[1722371255971,1.91225021,3272.3,3271.5,3.06111922]
[1722371256145,6.1739794,3273.2,3271.5,0.06111922]
[1722371256146,1.91225021,3272.1,3271.5,0.06111922]
[1722371256696,1.9120844,3272.2,3271.5,0.06111922]
[1722371256840,1.9120844,3272.3,3271.6,0.24037192]
[1722371257059,1.9120844,3272.3,3271.7,0.06111923]
[1722371257572,6.1739794,3273.2,3271.7,0.06111923]
[1722371257787,1.91225588,3272.3,3271.7,0.06111923]
[1722371258081,1.91225588,3272.3,3271.7,1.12126835]
[1722371258285,1.91225588,3272.3,3271.7,1.06014912]
[1722371258470,1.91225588,3272.2,3271.6,0.24037192]
[1722371258672,1.91225588,3272.3,3271.5,10.3]
[1722371258859,1.91225588,3272.2,3271.5,10.3]
[1722371259060,1.94394131,3272.2,3271.5,10.3]
[1722371259312,1.91225588,3272.3,3271.5,10.3]
[1722371259462,1.91225588,3272.3,3271.6,1.26426]
[1722371259804,1.91225588,3272.2,3271.6,1.26426]
[1722371259962,0.03163722,3272.1,3271.6,1.26426]
[1722371260165,1.91225588,3272.2,3271.6,1.26426]
[1722371260365,0.03163722,3272.1,3271.6,1.26426]
[1722371260886,0.03163722,3272.1,3271.5,10.3]
[1722371261274,1.91006144,3272.2,3271.5,10.3]
[1722371261477,0.03156683,3272.0,3271.5,10.3]
[1722371261704,1.91006144,3272.2,3271.5,10.3]
[1722371261705,0.03162258,3272.1,3271.5,10.3]
[1722371261918,0.03151108,3271.9,3271.5,3.0]
[1722371262114,0.03156683,3272.0,3271.4,2.3426]
[1722371262404,1.91006144,3272.4,3271.5,0.53426]
[1722371262405,0.0314818,3271.9,3271.5,0.53426]
[1722371262604,1.91006144,3272.2,3271.5,3.0]
[1722371262803,0.03159329,3272.1,3271.4,2.3426]
[1722371262965,1.91006144,3272.4,3271.5,0.06112567]
[1722371263166,0.03170478,3272.3,3271.4,2.3426]
[1722371263509,0.03170478,3272.3,3271.5,0.23426]
[1722371263659,0.03170478,3272.3,3271.5,3.23426]
[1722371263861,2.50950478,3272.3,3271.5,3.0]
[1722371264060,2.50950478,3272.3,3271.1,7.3]
[1722371264061,0.63979469,3272.2,3271.2,3.0]
[1722371264292,1.90935615,3272.1,3271.2,3.0]
[1722371264499,1.94100385,3272.1,3271.2,4.03]
[1722371265069,1.94100385,3272.1,3270.9,2.4186]
[1722371265322,1.90935615,3271.8,3270.9,2.4186]
[1722371265629,1.90935615,3271.6,3270.9,2.4186]
[1722371265787,0.03151392,3271.5,3270.9,2.4186]
[1722371265986,0.03151392,3271.5,3271.0,0.2479739]
[1722371266308,1.90935615,3271.8,3271.1,0.06113526]
[1722371266512,0.03132007,3271.4,3271.1,0.06113526]
[1722371266684,1.90935615,3271.7,3270.9,2.4186]
[1722371266881,0.0312643,3271.3,3270.9,2.4186]
[1722371267089,1.90979505,3271.7,3270.9,2.965056]
[1722371267613,2.5812733,3271.6,3270.7,7.3]
[1722371267797,1.90995738,3271.2,3270.7,7.3]
[1722371268004,1.94089088,3271.1,3270.5,2.4583]
[1722371268334,2.54989721,3271.0,3270.5,2.4583]
[1722371268528,0.0309335,3271.1,3270.5,2.4583]
[1722371268529,1.90995738,3270.9,3270.5,2.4583]
[1722371268809,1.94069996,3270.9,3270.5,2.4583]
[1722371269013,0.03074258,3270.9,3270.5,2.4583]
[1722371270117,1.94069996,3270.9,3270.5,2.4583]
[1722371270269,0.03074258,3270.9,3270.5,2.4583]